[Event "Early-Titled-Tuesday-Blitz-February-13-2024"]
[Site "Chess.com"]
[Date "2024.02.13"]
[Round "5"]
[White "Jaka_Brilej"]
[Black "Alenzer"]
[Result "1-0"]
[WhiteElo "2540"]
[BlackElo "2141"]
[TimeControl "180+1"]
[EndTime "9:01:06 PST"]
[Termination "Jaka_Brilej won by resignation"]

1. e4 {[%clk 0:03:00.9]} 1... c5 {[%clk 0:02:58.3]} 2. Nf3 {[%clk 0:02:54.8]}
2... e6 {[%clk 0:02:56.3]} 3. c3 {[%clk 0:02:54.7]} 3... d5 {[%clk 0:02:51.4]}
4. exd5 {[%clk 0:02:54.7]} 4... exd5 {[%clk 0:02:51.2]} 5. d4 {[%clk 0:02:55.4]}
5... Nf6 {[%clk 0:02:50.5]} 6. Bb5+ {[%clk 0:02:55.2]} 6... Nc6 {[%clk
0:02:49.8]} 7. O-O {[%clk 0:02:55.9]} 7... Bd6 {[%clk 0:02:48.3]} 8. Re1+ {[%clk
0:02:48.3]} 8... Be6 {[%clk 0:02:45]} 9. dxc5 {[%clk 0:02:35.3]} 9... Bxc5
{[%clk 0:02:44]} 10. Nbd2 {[%clk 0:02:22.7]} 10... O-O {[%clk 0:02:37.1]} 11.
Nb3 {[%clk 0:02:23.3]} 11... Bb6 {[%clk 0:02:33.5]} 12. h3 {[%clk 0:02:23.3]}
12... Ne4 {[%clk 0:02:32.3]} 13. Be3 {[%clk 0:02:22.6]} 13... Bc7 {[%clk
0:02:26.9]} 14. Nc5 {[%clk 0:01:25.1]} 14... Nxc5 {[%clk 0:01:42.9]} 15. Bxc5
{[%clk 0:01:26]} 15... Bd6 {[%clk 0:01:38.5]} 16. Bxd6 {[%clk 0:01:15.6]} 16...
Qxd6 {[%clk 0:01:37.9]} 17. Qd2 {[%clk 0:01:10.2]} 17... a6 {[%clk 0:01:24.2]}
18. Ba4 {[%clk 0:01:01.5]} 18... Rad8 {[%clk 0:00:58.9]} 19. Rad1 {[%clk
0:01:00.3]} 19... Na5 {[%clk 0:00:45.6]} 20. Bc2 {[%clk 0:00:52.9]} 20... Nc4
{[%clk 0:00:38.1]} 21. Qc1 {[%clk 0:00:42.1]} 21... Qd7 {[%clk 0:00:25.9]} 22.
Bb3 {[%clk 0:00:41.6]} 22... b5 {[%clk 0:00:24.5]} 23. Bxc4 {[%clk 0:00:32.4]}
23... bxc4 {[%clk 0:00:24.1]} 24. Re2 {[%clk 0:00:26]} 24... h6 {[%clk
0:00:16.5]} 25. Nd4 {[%clk 0:00:24.8]} 25... Rfe8 {[%clk 0:00:16.1]} 26. Nc2
{[%clk 0:00:24.1]} 26... Bf5 {[%clk 0:00:13.5]} 27. Rxe8+ {[%clk 0:00:21]} 27...
Rxe8 {[%clk 0:00:12.7]} 28. Ne3 {[%clk 0:00:21.9]} 28... Bd3 {[%clk 0:00:12]}
29. b4 {[%clk 0:00:21.1]} 29... Qd6 {[%clk 0:00:06.1]} 30. Qb2 {[%clk
0:00:17.1]} 30... Be4 {[%clk 0:00:03.3]} 31. Rd4 {[%clk 0:00:16.5]} 31... Bd3
{[%clk 0:00:03.4]} 32. Rxd5 {[%clk 0:00:16.5]} 32... Qe6 {[%clk 0:00:02.5]} 33.
Rd4 {[%clk 0:00:16.8]} 33... Qe5 {[%clk 0:00:02.5]} 34. Qd2 {[%clk 0:00:16.8]}
34... Re7 {[%clk 0:00:01.7]} 35. a4 {[%clk 0:00:16.9]} 35... Re8 {[%clk
0:00:01.5]} 36. Rd5 {[%clk 0:00:16.9]} 36... Qe6 {[%clk 0:00:01.4]} 37. Rd4
{[%clk 0:00:16.9]} 37... Qe5 {[%clk 0:00:01.6]} 38. Nxc4 {[%clk 0:00:16.2]}
38... Bxc4 {[%clk 0:00:01.4]} 39. Rxc4 {[%clk 0:00:17.1]} 39... Qe6 {[%clk
0:00:01.1]} 40. Rd4 {[%clk 0:00:16.1]} 40... Qe5 {[%clk 0:00:01.6]} 41. a5
{[%clk 0:00:15.9]} 41... Qe1+ {[%clk 0:00:02]} 42. Kh2 {[%clk 0:00:16]} 42...
Qxd2 {[%clk 0:00:02]} 43. Rxd2 {[%clk 0:00:15.7]} 43... Rc8 {[%clk 0:00:02.9]}
44. Rc2 {[%clk 0:00:15.9]} 44... Rc4 {[%clk 0:00:03]} 45. Kg3 {[%clk 0:00:15.7]}
45... Kf8 {[%clk 0:00:03.5]} 46. Kf3 {[%clk 0:00:16.3]} 46... Ke7 {[%clk
0:00:04.1]} 47. Ke3 {[%clk 0:00:16.9]} 47... Kd6 {[%clk 0:00:04.8]} 48. Kd3
{[%clk 0:00:17.6]} 48... Kd5 {[%clk 0:00:05.1]} 49. Re2 {[%clk 0:00:16.7]} 49...
Rf4 {[%clk 0:00:04.8]} 50. c4+ {[%clk 0:00:16.8]} 50... Kd6 {[%clk 0:00:04.4]}
51. Kc3 {[%clk 0:00:14.3]} 51... f6 {[%clk 0:00:04.2]} 52. b5 {[%clk 0:00:14.7]}
52... axb5 {[%clk 0:00:03.8]} 53. cxb5 {[%clk 0:00:15.6]} 53... Ra4 {[%clk
0:00:04.1]} 54. a6 {[%clk 0:00:15.2]} 54... Kc5 {[%clk 0:00:04.2]} 55. Rb2
{[%clk 0:00:15.9]} 55... Ra3+ {[%clk 0:00:04.3]} 56. Kd2 {[%clk 0:00:16]} 56...
Ra4 {[%clk 0:00:04.4]} 57. Ke2 {[%clk 0:00:14.9]} 57... Ra3 {[%clk 0:00:04.6]}
58. g3 {[%clk 0:00:14.9]} 58... Kb6 {[%clk 0:00:04.7]} 59. h4 {[%clk 0:00:15]}
59... Ra4 {[%clk 0:00:04.8]} 60. Kf1 {[%clk 0:00:15.2]} 60... g6 {[%clk
0:00:05.2]} 61. Kg2 {[%clk 0:00:15.5]} 61... Rd4 {[%clk 0:00:05]} 62. Re2 {[%clk
0:00:15.7]} 62... Rd6 {[%clk 0:00:04.9]} 63. Rb2 {[%clk 0:00:15.3]} 63... f5
{[%clk 0:00:04.7]} 64. Kf3 {[%clk 0:00:15.8]} 64... Re6 {[%clk 0:00:05.1]} 65.
Ra2 {[%clk 0:00:13.8]} 65... Rd6 {[%clk 0:00:05.1]} 66. a7 {[%clk 0:00:14.3]}
66... Rd8 {[%clk 0:00:03.7]} 67. a8=Q {[%clk 0:00:14.5]} 67... Rxa8 {[%clk
0:00:04.1]} 68. Rxa8 {[%clk 0:00:15]} 68... Kxb5 {[%clk 0:00:05]} 69. Rg8 {[%clk
0:00:15.2]} 1-0

[Event "Early-Titled-Tuesday-Blitz-February-13-2024"]
[Site "Chess.com"]
[Date "2024.02.13"]
[Round "5"]
[White "NM_Antelacus"]
[Black "Road2GM3000"]
[Result "0-1"]
[WhiteElo "2248"]
[BlackElo "2472"]
[TimeControl "180+1"]
[EndTime "9:01:06 PST"]
[Termination "Road2GM3000 won on time"]

1. e4 {[%clk 0:03:00.9]} 1... c5 {[%clk 0:03:00.3]} 2. Nf3 {[%clk 0:03:00.6]}
2... d6 {[%clk 0:03:00.6]} 3. c3 {[%clk 0:02:59]} 3... Nf6 {[%clk 0:02:59.4]} 4.
Be2 {[%clk 0:02:58.3]} 4... g6 {[%clk 0:02:59.3]} 5. O-O {[%clk 0:02:57.6]} 5...
Bg7 {[%clk 0:03:00]} 6. Re1 {[%clk 0:02:57.3]} 6... O-O {[%clk 0:03:00.7]} 7.
Bf1 {[%clk 0:02:57.3]} 7... Bg4 {[%clk 0:03:00]} 8. h3 {[%clk 0:02:55.2]} 8...
Bxf3 {[%clk 0:03:00.5]} 9. Qxf3 {[%clk 0:02:54.6]} 9... Nc6 {[%clk 0:03:01.3]}
10. d3 {[%clk 0:02:53.2]} 10... Nd7 {[%clk 0:02:57.9]} 11. Nd2 {[%clk 0:02:49]}
11... e6 {[%clk 0:02:56.9]} 12. Qe2 {[%clk 0:02:44.7]} 12... d5 {[%clk
0:02:56.9]} 13. Nf3 {[%clk 0:02:42.5]} 13... Qb6 {[%clk 0:02:56.6]} 14. Be3
{[%clk 0:02:37.3]} 14... d4 {[%clk 0:02:55.8]} 15. cxd4 {[%clk 0:02:36.6]} 15...
cxd4 {[%clk 0:02:56.7]} 16. Bg5 {[%clk 0:02:31.6]} 16... h6 {[%clk 0:02:52.8]}
17. Bh4 {[%clk 0:02:30.8]} 17... Rac8 {[%clk 0:02:50.2]} 18. Rac1 {[%clk
0:02:29.1]} 18... Nb4 {[%clk 0:02:49.9]} 19. Be7 {[%clk 0:02:27]} 19... Rfe8
{[%clk 0:02:47.9]} 20. Bxb4 {[%clk 0:02:22.2]} 20... Qxb4 {[%clk 0:02:48.8]} 21.
Qd2 {[%clk 0:02:14]} 21... Qa4 {[%clk 0:02:44.8]} 22. b3 {[%clk 0:02:04.3]}
22... Qa3 {[%clk 0:02:43.8]} 23. Rc2 {[%clk 0:02:00.3]} 23... Nb6 {[%clk
0:02:39.6]} 24. Rec1 {[%clk 0:01:57.9]} 24... Rxc2 {[%clk 0:02:39.4]} 25. Rxc2
{[%clk 0:01:56.4]} 25... Rc8 {[%clk 0:02:37]} 26. Rxc8+ {[%clk 0:01:47.4]} 26...
Nxc8 {[%clk 0:02:37.9]} 27. Qc2 {[%clk 0:01:44]} 27... Nd6 {[%clk 0:02:37.2]}
28. Be2 {[%clk 0:01:41.2]} 28... Nb5 {[%clk 0:02:37.2]} 29. e5 {[%clk
0:01:26.3]} 29... Qb4 {[%clk 0:02:14.6]} 30. Qc8+ {[%clk 0:01:23.4]} 30... Kh7
{[%clk 0:02:14.1]} 31. Qxb7 {[%clk 0:01:22]} 31... Kg8 {[%clk 0:02:07.9]} 32.
Qc8+ {[%clk 0:01:19.9]} 32... Bf8 {[%clk 0:02:06.8]} 33. Qc4 {[%clk 0:01:16.7]}
33... Qxc4 {[%clk 0:02:04.3]} 34. dxc4 {[%clk 0:01:12.9]} 34... Nc3 {[%clk
0:02:05.2]} 35. Bd3 {[%clk 0:01:11.7]} 35... Nxa2 {[%clk 0:01:49.1]} 36. Nxd4
{[%clk 0:01:11.1]} 36... g5 {[%clk 0:01:49.8]} 37. Kf1 {[%clk 0:01:08.4]} 37...
Bg7 {[%clk 0:01:44.6]} 38. Nc6 {[%clk 0:01:06.7]} 38... a6 {[%clk 0:01:33.8]}
39. Bc2 {[%clk 0:01:02.1]} 39... Kf8 {[%clk 0:01:24.8]} 40. Ke1 {[%clk
0:01:02.1]} 40... Ke8 {[%clk 0:01:25.2]} 41. Kd2 {[%clk 0:00:59.8]} 41... Kd7
{[%clk 0:01:25.9]} 42. Be4 {[%clk 0:00:58.4]} 42... Kc7 {[%clk 0:01:21]} 43. Kc2
{[%clk 0:00:56.8]} 43... a5 {[%clk 0:01:19.4]} 44. Kb2 {[%clk 0:00:55.7]} 44...
Nb4 {[%clk 0:01:18.8]} 45. Nxa5 {[%clk 0:00:53]} 45... Bxe5+ {[%clk 0:01:13.4]}
46. Ka3 {[%clk 0:00:51.8]} 46... Bd6 {[%clk 0:01:08.1]} 47. Ka4 {[%clk
0:00:49.4]} 47... Na6 {[%clk 0:01:02.4]} 48. Bh7 {[%clk 0:00:47.4]} 48... Kb6
{[%clk 0:00:54.1]} 49. Bg8 {[%clk 0:00:35.1]} 49... Nc5+ {[%clk 0:00:51.8]} 50.
Ka3 {[%clk 0:00:34.9]} 50... Nd3+ {[%clk 0:00:52.5]} 51. Ka2 {[%clk 0:00:29]}
51... Kxa5 {[%clk 0:00:52.4]} 52. Bxf7 {[%clk 0:00:29]} 52... e5 {[%clk
0:00:49]} 53. f3 {[%clk 0:00:27.6]} 53... Ne1 {[%clk 0:00:49.1]} 54. Kb2 {[%clk
0:00:25]} 54... Nxg2 {[%clk 0:00:49.3]} 55. Kc3 {[%clk 0:00:25.4]} 55... Nf4
{[%clk 0:00:49.7]} 56. Bg8 {[%clk 0:00:14.7]} 56... Bb4+ {[%clk 0:00:49.6]} 57.
Kc2 {[%clk 0:00:13.9]} 57... Nxh3 {[%clk 0:00:50.3]} 58. Kd3 {[%clk 0:00:14.4]}
58... Ng1 {[%clk 0:00:44.6]} 59. Ke4 {[%clk 0:00:14.4]} 59... Bc3 {[%clk
0:00:45.1]} 60. Be6 {[%clk 0:00:12.7]} 60... Kb4 {[%clk 0:00:42.1]} 61. Bg4
{[%clk 0:00:11.2]} 61... Kxb3 {[%clk 0:00:32.7]} 62. c5 {[%clk 0:00:10.8]} 62...
Ne2 {[%clk 0:00:26.1]} 63. c6 {[%clk 0:00:09]} 63... Ng3+ {[%clk 0:00:26.1]} 64.
Kd5 {[%clk 0:00:08.6]} 64... Ba5 {[%clk 0:00:26.1]} 65. Kxe5 {[%clk 0:00:08.4]}
65... h5 {[%clk 0:00:20.6]} 66. Bh3 {[%clk 0:00:07.8]} 66... Kc4 {[%clk
0:00:19.9]} 67. Kf6 {[%clk 0:00:07.7]} 67... Bd8+ {[%clk 0:00:19.1]} 68. Ke5
{[%clk 0:00:07.1]} 68... Kc5 {[%clk 0:00:19]} 69. f4 {[%clk 0:00:05.4]} 69... g4
{[%clk 0:00:18.8]} 70. Bg2 {[%clk 0:00:04.5]} 70... Bc7+ {[%clk 0:00:18.6]} 71.
Kf6 {[%clk 0:00:04.2]} 71... h4 {[%clk 0:00:18.3]} 72. Kg5 {[%clk 0:00:04]}
72... h3 {[%clk 0:00:18.5]} 0-1

[Event "Early-Titled-Tuesday-Blitz-February-13-2024"]
[Site "Chess.com"]
[Date "2024.02.13"]
[Round "5"]
[White "SpongeBob_03"]
[Black "esrosenberg"]
[Result "0-1"]
[WhiteElo "2219"]
[BlackElo "2414"]
[TimeControl "180+1"]
[EndTime "9:01:07 PST"]
[Termination "esrosenberg won on time"]

1. e4 {[%clk 0:02:56.1]} 1... e6 {[%clk 0:02:59.5]} 2. d4 {[%clk 0:02:55.9]}
2... d5 {[%clk 0:03:00.1]} 3. exd5 {[%clk 0:02:56]} 3... exd5 {[%clk 0:03:00.2]}
4. Nc3 {[%clk 0:02:56.9]} 4... Nf6 {[%clk 0:02:58.8]} 5. Bd3 {[%clk 0:02:56.8]}
5... c6 {[%clk 0:02:55.2]} 6. Nge2 {[%clk 0:02:55.7]} 6... Bg4 {[%clk
0:02:51.9]} 7. f3 {[%clk 0:02:55.2]} 7... Bh5 {[%clk 0:02:52.1]} 8. g4 {[%clk
0:02:54.5]} 8... Bg6 {[%clk 0:02:52.8]} 9. Nf4 {[%clk 0:02:53.7]} 9... Bd6
{[%clk 0:02:50.5]} 10. O-O {[%clk 0:02:53.1]} 10... Qc7 {[%clk 0:02:49.6]} 11.
Re1+ {[%clk 0:02:52.5]} 11... Kf8 {[%clk 0:02:48.6]} 12. Bxg6 {[%clk 0:02:48.2]}
12... hxg6 {[%clk 0:02:49.5]} 13. Nce2 {[%clk 0:02:27]} 13... g5 {[%clk
0:02:48.1]} 14. Nd3 {[%clk 0:02:19.2]} 14... Bxh2+ {[%clk 0:02:46.6]} 15. Kg2
{[%clk 0:02:19.4]} 15... Bd6 {[%clk 0:02:37.1]} 16. Rh1 {[%clk 0:02:18.9]} 16...
Rxh1 {[%clk 0:02:13.6]} 17. Qxh1 {[%clk 0:02:19.8]} 17... Nbd7 {[%clk
0:02:12.3]} 18. Bxg5 {[%clk 0:02:18]} 18... Kg8 {[%clk 0:02:07.2]} 19. Re1
{[%clk 0:02:11.4]} 19... Re8 {[%clk 0:02:05]} 20. Nef4 {[%clk 0:02:08]} 20...
Rxe1 {[%clk 0:01:59.2]} 21. Qxe1 {[%clk 0:02:08.9]} 21... Nh7 {[%clk 0:01:53.1]}
22. Qe8+ {[%clk 0:02:07.9]} 22... Ndf8 {[%clk 0:01:53.1]} 23. Bd8 {[%clk
0:02:03.4]} 23... Qd7 {[%clk 0:01:49]} 24. Qxd7 {[%clk 0:01:59.1]} 24... Nxd7
{[%clk 0:01:49.9]} 25. Ba5 {[%clk 0:01:57.5]} 25... b6 {[%clk 0:01:43.7]} 26.
Bd2 {[%clk 0:01:56.7]} 26... a5 {[%clk 0:01:40.7]} 27. c3 {[%clk 0:01:56.5]}
27... g6 {[%clk 0:01:36.6]} 28. Ne2 {[%clk 0:01:43.9]} 28... Kf8 {[%clk
0:01:36.2]} 29. Bh6+ {[%clk 0:01:43.2]} 29... Ke7 {[%clk 0:01:36.1]} 30. Bf4
{[%clk 0:01:40.4]} 30... Nhf8 {[%clk 0:01:31.3]} 31. Kg3 {[%clk 0:01:40]} 31...
Ne6 {[%clk 0:01:30.6]} 32. Bxd6+ {[%clk 0:01:37.5]} 32... Kxd6 {[%clk
0:01:31.5]} 33. Nef4 {[%clk 0:01:37.7]} 33... c5 {[%clk 0:01:26.3]} 34. Nxe6
{[%clk 0:01:34.1]} 34... Kxe6 {[%clk 0:01:21]} 35. Kf4 {[%clk 0:01:28.8]} 35...
f6 {[%clk 0:01:19.6]} 36. g5 {[%clk 0:01:27.4]} 36... f5 {[%clk 0:01:14.9]} 37.
Kg3 {[%clk 0:01:27.5]} 37... Nf8 {[%clk 0:01:08.1]} 38. Nf4+ {[%clk 0:01:25.8]}
38... Kd6 {[%clk 0:01:08.2]} 39. Kh4 {[%clk 0:01:23.6]} 39... Kc6 {[%clk
0:01:08.1]} 40. a4 {[%clk 0:01:21.4]} 40... cxd4 {[%clk 0:01:05]} 41. cxd4
{[%clk 0:01:21.5]} 41... Kd6 {[%clk 0:01:05.1]} 42. Kg3 {[%clk 0:01:16.2]} 42...
Kc6 {[%clk 0:00:58.5]} 43. Kf2 {[%clk 0:01:09.9]} 43... b5 {[%clk 0:00:52.3]}
44. axb5+ {[%clk 0:01:09.1]} 44... Kxb5 {[%clk 0:00:53.2]} 45. Ke3 {[%clk
0:00:47.6]} 45... Kc4 {[%clk 0:00:53.4]} 46. Nd3 {[%clk 0:00:44.2]} 46... a4
{[%clk 0:00:49.7]} 47. Nf4 {[%clk 0:00:27]} 47... Kb3 {[%clk 0:00:44.1]} 48.
Nxd5 {[%clk 0:00:22.8]} 48... Kxb2 {[%clk 0:00:44.7]} 49. Nb4 {[%clk 0:00:22.5]}
49... Kb3 {[%clk 0:00:44.4]} 50. Nd3 {[%clk 0:00:22.7]} 50... a3 {[%clk
0:00:44.2]} 51. d5 {[%clk 0:00:17.5]} 51... Kc2 {[%clk 0:00:43.6]} 52. Nb4+
{[%clk 0:00:17.7]} 52... Kb3 {[%clk 0:00:43.1]} 53. Nd3 {[%clk 0:00:18]} 53...
Kc3 {[%clk 0:00:42.9]} 54. Nc1 {[%clk 0:00:17.1]} 54... Kc2 {[%clk 0:00:41.2]}
55. Na2 {[%clk 0:00:16]} 55... Kb3 {[%clk 0:00:37.7]} 56. Nc1+ {[%clk 0:00:16]}
56... Kc4 {[%clk 0:00:38.1]} 57. d6 {[%clk 0:00:14.1]} 57... Kd5 {[%clk
0:00:38.4]} 58. Kd3 {[%clk 0:00:10.9]} 58... Kxd6 {[%clk 0:00:37.3]} 59. Kc3
{[%clk 0:00:11]} 59... Ke5 {[%clk 0:00:37.8]} 60. Ne2 {[%clk 0:00:10.7]} 60...
Ne6 {[%clk 0:00:36.8]} 61. Kb3 {[%clk 0:00:09.6]} 61... Nf4 {[%clk 0:00:37.3]}
62. Ng3 {[%clk 0:00:09.1]} 62... Nd3 {[%clk 0:00:34.9]} 63. Kxa3 {[%clk
0:00:08.6]} 63... Kf4 {[%clk 0:00:33.8]} 64. Ne2+ {[%clk 0:00:03.4]} 64... Kxf3
{[%clk 0:00:31.7]} 65. Nd4+ {[%clk 0:00:02.8]} 65... Kg4 {[%clk 0:00:31.8]} 66.
Ne6 {[%clk 0:00:03.3]} 66... f4 {[%clk 0:00:31.7]} 67. Kb3 {[%clk 0:00:01.2]}
67... f3 {[%clk 0:00:29.8]} 68. Kc3 {[%clk 0:00:01.7]} 68... f2 {[%clk
0:00:28.7]} 69. Kxd3 {[%clk 0:00:01]} 69... f1=Q+ {[%clk 0:00:29]} 70. Ke4
{[%clk 0:00:01.9]} 70... Qf5+ {[%clk 0:00:27.5]} 0-1

[Event "Early-Titled-Tuesday-Blitz-February-13-2024"]
[Site "Chess.com"]
[Date "2024.02.13"]
[Round "5"]
[White "arctic_t00"]
[Black "Sanan_Sjugirov"]
[Result "0-1"]
[WhiteElo "2702"]
[BlackElo "2998"]
[TimeControl "180+1"]
[EndTime "9:01:09 PST"]
[Termination "Sanan_Sjugirov won by resignation"]

1. d4 {[%clk 0:02:57.8]} 1... Nf6 {[%clk 0:02:59.7]} 2. Nf3 {[%clk 0:02:55.6]}
2... d5 {[%clk 0:02:59.3]} 3. c4 {[%clk 0:02:55]} 3... e6 {[%clk 0:02:59.9]} 4.
e3 {[%clk 0:02:55]} 4... a6 {[%clk 0:02:57.6]} 5. Nbd2 {[%clk 0:02:52.8]} 5...
b6 {[%clk 0:02:57]} 6. b3 {[%clk 0:02:51.4]} 6... Bb7 {[%clk 0:02:57.6]} 7. Bb2
{[%clk 0:02:51.8]} 7... Bd6 {[%clk 0:02:58.1]} 8. Bd3 {[%clk 0:02:51.6]} 8...
O-O {[%clk 0:02:58.7]} 9. O-O {[%clk 0:02:50.3]} 9... Nbd7 {[%clk 0:02:59.3]}
10. Rc1 {[%clk 0:02:46.7]} 10... Re8 {[%clk 0:02:58.6]} 11. Ne5 {[%clk
0:02:42.9]} 11... dxc4 {[%clk 0:02:32.9]} 12. Ndxc4 {[%clk 0:02:37.4]} 12... Bf8
{[%clk 0:02:26.2]} 13. Qe2 {[%clk 0:02:28.4]} 13... g6 {[%clk 0:02:20.8]} 14.
Rfd1 {[%clk 0:02:23.1]} 14... Bg7 {[%clk 0:02:20.7]} 15. Nd2 {[%clk 0:02:17.6]}
15... Nxe5 {[%clk 0:02:15.3]} 16. dxe5 {[%clk 0:02:17.6]} 16... Nd7 {[%clk
0:02:16]} 17. Be4 {[%clk 0:02:03.2]} 17... Qc8 {[%clk 0:02:15.4]} 18. Qf3 {[%clk
0:01:59.1]} 18... Rb8 {[%clk 0:02:06.1]} 19. Qg3 {[%clk 0:01:53.5]} 19... Rd8
{[%clk 0:01:57.9]} 20. h4 {[%clk 0:01:48.8]} 20... Nc5 {[%clk 0:01:56]} 21. Bxb7
{[%clk 0:01:42.8]} 21... Qxb7 {[%clk 0:01:56.9]} 22. Bd4 {[%clk 0:01:16.3]}
22... Nd3 {[%clk 0:01:55.2]} 23. Rc3 {[%clk 0:01:15.7]} 23... Nb4 {[%clk
0:01:53.8]} 24. a3 {[%clk 0:00:53.7]} 24... Nc6 {[%clk 0:01:49.6]} 25. Nf3
{[%clk 0:00:51.4]} 25... Ne7 {[%clk 0:01:48.1]} 26. Rcd3 {[%clk 0:00:48.7]}
26... Qd5 {[%clk 0:01:19.2]} 27. Qf4 {[%clk 0:00:44.2]} 27... Qb5 {[%clk
0:01:01.8]} 28. Ng5 {[%clk 0:00:40.2]} 28... Qe8 {[%clk 0:00:57.9]} 29. Ne4
{[%clk 0:00:38.9]} 29... Nf5 {[%clk 0:00:51.9]} 30. Nf6+ {[%clk 0:00:36.5]}
30... Bxf6 {[%clk 0:00:51.8]} 31. exf6 {[%clk 0:00:37.4]} 31... Nxd4 {[%clk
0:00:23.6]} 32. exd4 {[%clk 0:00:37.3]} 32... Rd5 {[%clk 0:00:20.7]} 33. g4
{[%clk 0:00:34.7]} 33... Qd8 {[%clk 0:00:14.4]} 34. g5 {[%clk 0:00:27.6]} 34...
h5 {[%clk 0:00:13.1]} 35. Rc3 {[%clk 0:00:18.4]} 35... c5 {[%clk 0:00:11.4]} 36.
Rc4 {[%clk 0:00:11.6]} 36... b5 {[%clk 0:00:06.5]} 37. Rcc1 {[%clk 0:00:09.9]}
37... cxd4 {[%clk 0:00:06.4]} 38. Rc6 {[%clk 0:00:07.6]} 38... d3 {[%clk
0:00:05.5]} 39. Rd2 {[%clk 0:00:07]} 39... Rc8 {[%clk 0:00:05.4]} 40. Rxa6
{[%clk 0:00:05.2]} 40... Rd4 {[%clk 0:00:04.7]} 41. Qe5 {[%clk 0:00:04]} 41...
Rg4+ {[%clk 0:00:04.1]} 42. Kh2 {[%clk 0:00:03.3]} 42... Rxh4+ {[%clk
0:00:04.5]} 43. Kg3 {[%clk 0:00:04]} 43... Rg4+ {[%clk 0:00:05.4]} 44. Kh3
{[%clk 0:00:04.8]} 44... Rd4 {[%clk 0:00:03.7]} 45. Ra7 {[%clk 0:00:04.7]} 45...
Rd5 {[%clk 0:00:03.8]} 46. Qe3 {[%clk 0:00:04.2]} 46... e5 {[%clk 0:00:04.1]}
47. Kg3 {[%clk 0:00:03.6]} 47... Qd6 {[%clk 0:00:04.2]} 48. Re7 {[%clk
0:00:02.7]} 48... e4+ {[%clk 0:00:04.1]} 49. Kg2 {[%clk 0:00:02.4]} 49... Rcc5
{[%clk 0:00:03.9]} 50. Rxe4 {[%clk 0:00:02.5]} 50... Rxg5+ {[%clk 0:00:04]} 51.
Kh3 {[%clk 0:00:02.8]} 51... Qxf6 {[%clk 0:00:04]} 52. Re8+ {[%clk 0:00:02.8]}
52... Kg7 {[%clk 0:00:04.1]} 53. Qxd3 {[%clk 0:00:02.8]} 53... Rgf5 {[%clk
0:00:03.3]} 54. Qg3 {[%clk 0:00:02.1]} 54... Rf3 {[%clk 0:00:02.9]} 55. Rd3
{[%clk 0:00:02.7]} 55... Rxg3+ {[%clk 0:00:03.3]} 56. Rxg3 {[%clk 0:00:03.6]}
56... Rc3 {[%clk 0:00:03.7]} 57. f3 {[%clk 0:00:02.7]} 57... Rxf3 {[%clk
0:00:02.8]} 58. Re3 {[%clk 0:00:02.9]} 58... Rxg3+ {[%clk 0:00:03.1]} 59. Rxg3
{[%clk 0:00:03.8]} 59... Qf5+ {[%clk 0:00:03.5]} 0-1